fUSD/lending_fUSD_20260512
["ID","MTS","AMOUNT","RATE_DAILY","PERIOD"]
[422120930,1778583041000,-235.91,0.0002646,2]
[422120964,1778583041000,-1000.0,0.00026921,2]
[422120985,1778583041000,-250.0,0.00027945,5]
[422120969,1778583041000,-1500.0,0.00027397,2]
[422120989,1778583041000,-353.71,0.00028396,14]
[422120994,1778583041000,-530.57,0.0002847,2]
[422120995,1778583041000,-1877.67502266,0.00028485,2]
[422120996,1778583041000,-213.29267257,0.00028485,2]
[422120998,1778583041000,-359.19967472,0.00028493,5]
[422120997,1778583041000,-3017.7961671,0.00028485,2]
[422121001,1778583041000,-785.96823649,0.00028908,2]
[422121003,1778583041000,-785.96823649,0.00029013,2]
[422120999,1778583041000,-152.0,0.00028517,120]
[422121000,1778583041000,-510.0,0.00028906,6]
[422121002,1778583041000,-2000.0,0.00028943,120]
[422121004,1778583041000,-530.57,0.00029032,2]
[422121005,1778583041000,-785.96823649,0.00029096,2]
[422121006,1778583041000,-12094.67166057,0.00029214,2]
[422121007,1778583041000,-1058.25,0.000294,2]
[422121008,1778583041000,-1058.25,0.00029417,2]
[422121010,1778583041000,-179.2,0.00029433,120]
[422121011,1778583041000,-1247.0,0.00029445,2]
[422121012,1778583041000,-1058.25,0.0002945,2]
[422121013,1778583041000,-1058.25,0.00029467,2]
[422121009,1778583041000,-1058.25,0.00029433,2]
[422121014,1778583041000,-1058.25,0.00029483,2]
[422121015,1778583041000,-1058.25,0.000295,2]
[422121017,1778583041000,-150.0,0.00029601,2]
[422121018,1778583041000,-9999.0,0.0003,2]
[422120988,1778583041000,-4857.52129124,0.00028371,2]
[422120984,1778583041000,-500.0,0.000278,7]
[422120961,1778583041000,-1569.07,0.00026575,7]
[422120987,1778583041000,-150.0,0.00028192,2]
[422120967,1778583041000,-477.88,0.00027248,2]
[422120962,1778583041000,-4633.95,0.00026575,7]
[422120966,1778583041000,-830.94570506,0.00027167,2]
[422120965,1778583041000,-980.0,0.000271,7]
[422120963,1778583041000,-150.0,0.00026849,2]
[422120968,1778583041000,-210.53,0.00027346,2]
[422120970,1778583041000,-1009.49,0.00027397,2]
[422120986,1778583041000,-1966.39575832,0.00028016,5]
[422120973,1778583041000,-7635.03,0.00027397,10]
[422120972,1778583041000,-235.61,0.00027397,2]
[422120974,1778583041000,-150.0,0.00027397,5]
[422120971,1778583041000,-300.0,0.00027397,2]
[422120975,1778583041000,-264.35,0.000274,7]
[422120981,1778583041000,-477.88,0.00027522,2]
[422120979,1778583041000,-401.58,0.000275,2]
[422121016,1778583041000,-210.53,0.00029534,2]
[422120992,1778583041000,-530.57,0.00028426,2]
[422120991,1778583041000,-353.71,0.00028421,14]
[422120982,1778583041000,-1152.0,0.00027728,2]
[422120993,1778583041000,-210.53,0.0002844,2]
[422120983,1778583041000,-614.14,0.00027796,2]
[422120978,1778583041000,-1500.0,0.00027468,5]
[422120977,1778583041000,-510.0,0.00027403,5]
[422120976,1778583041000,-980.0,0.000274,7]
[422120980,1778583041000,-568.65,0.000275,7]
[422120990,1778583041000,-353.71,0.00028396,14]
[422121056,1778583042000,-191.0,0.00031683,30]
[422121053,1778583042000,-417.0,0.00031633,2]
[422121050,1778583042000,-150.0,0.00031633,2]
[422121062,1778583042000,-733.0,0.00031697,30]
[422121061,1778583042000,-292.0,0.00031697,30]
[422121060,1778583042000,-153.0,0.00031697,30]
[422121051,1778583042000,-200.0,0.00031633,2]
[422121039,1778583042000,-150.0,0.00031081,2]
[422121044,1778583042000,-8940.0,0.000315,2]
[422121059,1778583042000,-154.0,0.00031694,30]
[422121055,1778583042000,-164.0,0.00031683,30]
[422121070,1778583042000,-5530.0,0.000323,3]
[422121054,1778583042000,-383.0,0.00031683,30]
[422121057,1778583042000,-155.0,0.00031683,30]
[422121058,1778583042000,-158.0,0.00031683,30]
[422121063,1778583042000,-154.0,0.00031697,30]
[422121066,1778583042000,-629.0,0.00032,2]
[422121065,1778583042000,-510.0,0.00031911,9]
[422121072,1778583042000,-950.0,0.00032408,2]
[422121067,1778583042000,-208.16996645,0.00032,120]
[422121064,1778583042000,-151.0,0.00031697,30]
[422121068,1778583042000,-200.0,0.00032055,2]
[422121073,1778583042000,-950.0,0.00032408,2]
[422121042,1778583042000,-150.41,0.00031446,120]
[422121052,1778583042000,-150.18,0.00031633,2]
[422121048,1778583042000,-504.068,0.00031633,2]
[422121036,1778583042000,-657.7811158,0.000308,2]
[422121041,1778583042000,-264.35,0.000311,7]
[422121074,1778583042000,-950.0,0.00032408,2]
[422121023,1778583042000,-510.0,0.00030408,8]
[422121022,1778583042000,-1613.0,0.00030202,2]
[422121019,1778583042000,-235.61,0.00030137,2]
[422121024,1778583042000,-4857.52129124,0.00030539,2]
[422121021,1778583042000,-360.86,0.00030137,2]
[422121020,1778583042000,-200.0,0.00030137,2]
[422121026,1778583042000,-164.0,0.00030683,30]
[422121025,1778583042000,-383.0,0.00030683,30]
[422121027,1778583042000,-191.0,0.00030683,30]
[422121028,1778583042000,-155.0,0.00030683,30]
[422121033,1778583042000,-733.0,0.00030697,30]
[422121035,1778583042000,-151.0,0.00030697,30]
[422121034,1778583042000,-154.0,0.00030697,30]
[422121029,1778583042000,-158.0,0.00030683,30]
[422121031,1778583042000,-153.0,0.00030697,30]
[422121032,1778583042000,-292.0,0.00030697,30]
[422121030,1778583042000,-154.0,0.00030694,30]
[422121045,1778583042000,-2000.0,0.00031574,120]
[422121049,1778583042000,-1273.818,0.00031633,2]
[422121047,1778583042000,-1353.0,0.00031633,2]
[422121046,1778583042000,-3576.775,0.00031633,2]
[422121040,1778583042000,-200.0,0.00031096,2]
[422121043,1778583042000,-1000.0,0.000315,7]
[422121037,1778583042000,-830.94570506,0.0003085,2]
[422121038,1778583042000,-1995.18204968,0.0003085,2]
[422121069,1778583042000,-151.0,0.0003221,5]
[422121075,1778583042000,-950.0,0.00032408,2]
[422121077,1778583042000,-950.0,0.00032408,2]
[422121117,1778583042000,-164.0,0.00033683,30]
[422121114,1778583042000,-350.0,0.00033014,5]
[422121106,1778583042000,-205.0,0.0003282,2]
[422121116,1778583042000,-383.0,0.00033683,30]
[422121113,1778583042000,-5530.0,0.00033,5]
[422121109,1778583042000,-2258.0,0.00032896,2]
[422121118,1778583042000,-191.0,0.00033683,30]
[422121111,1778583042000,-175.0,0.00033,120]
[422121107,1778583042000,-235.61,0.00032877,2]
[422121108,1778583042000,-150.0,0.00032877,60]
[422121112,1778583042000,-208.16996645,0.00033,120]
[422121110,1778583042000,-568.65,0.000329,7]
[422121105,1778583042000,-150.0,0.0003282,2]
[422121119,1778583042000,-155.0,0.00033683,30]
[422121129,1778583042000,-151.0,0.00034182,7]
[422121121,1778583042000,-153.0,0.00033697,30]
[422121130,1778583042000,-150.0,0.00034267,2]
[422121128,1778583042000,-264.35,0.00034,30]
[422121127,1778583042000,-350.0,0.00033973,5]
[422121125,1778583042000,-151.0,0.00033697,30]
[422121124,1778583042000,-154.0,0.00033697,30]
[422121123,1778583042000,-733.0,0.00033697,30]
[422121122,1778583042000,-292.0,0.00033697,30]
[422121126,1778583042000,-208.16996645,0.000339,120]
[422121071,1778583042000,-12094.67166057,0.00032386,2]
[422121131,1778583042000,-830.94570506,0.00034533,2]
[422121120,1778583042000,-158.0,0.00033683,30]
[422121104,1778583042000,-150.0,0.0003282,2]
[422121115,1778583042000,-510.0,0.00033414,11]
[422121100,1778583042000,-4857.52129124,0.00032707,2]
[422121099,1778583042000,-151.0,0.00032697,30]
[422121078,1778583042000,-950.0,0.00032408,2]
[422121080,1778583042000,-950.0,0.00032408,2]
[422121082,1778583042000,-150.0,0.00032636,2]
[422121079,1778583042000,-950.0,0.00032408,2]
[422121081,1778583042000,-774.0,0.00032408,2]
[422121084,1778583042000,-164.0,0.00032683,30]
[422121092,1778583042000,-400.0,0.00032697,30]
[422121094,1778583042000,-331.0,0.00032697,30]
[422121093,1778583042000,-400.0,0.00032697,30]
[422121085,1778583042000,-191.0,0.00032683,30]
[422121086,1778583042000,-155.0,0.00032683,30]
[422121091,1778583042000,-400.0,0.00032697,30]
[422121076,1778583042000,-950.0,0.00032408,2]
[422121097,1778583042000,-733.0,0.00032697,30]
[422121083,1778583042000,-383.0,0.00032683,30]
[422121098,1778583042000,-154.0,0.00032697,30]
[422121096,1778583042000,-292.0,0.00032697,30]
[422121101,1778583042000,-152.0,0.00032778,3]
[422121102,1778583042000,-351.0,0.0003282,2]
[422121103,1778583042000,-150.0,0.0003282,2]
[422121089,1778583042000,-400.0,0.00032697,30]
[422121090,1778583042000,-400.0,0.00032697,30]
[422121087,1778583042000,-158.0,0.00032683,30]
[422121088,1778583042000,-154.0,0.00032694,30]
[422121095,1778583042000,-153.0,0.00032697,30]
[422121179,1778583043000,-350.0,0.0003589,5]
[422121175,1778583043000,-733.0,0.00035697,30]
[422121170,1778583043000,-191.0,0.00035683,30]
[422121167,1778583043000,-235.61,0.00035616,2]
[422121178,1778583043000,-489.0,0.00035831,2]
[422121163,1778583043000,-613.08454086,0.00035616,7]
[422121166,1778583043000,-304.97722457,0.00035616,2]
[422121160,1778583043000,-500.0,0.00035616,7]
[422121162,1778583043000,-500.0,0.00035616,7]
[422121172,1778583043000,-158.0,0.00035683,30]
[422121161,1778583043000,-500.0,0.00035616,7]
[422121168,1778583043000,-383.0,0.00035683,30]
[422121171,1778583043000,-155.0,0.00035683,30]
[422121191,1778583043000,-191.0,0.00036683,30]
[422121169,1778583043000,-164.0,0.00035683,30]
[422121174,1778583043000,-292.0,0.00035697,30]
[422121176,1778583043000,-154.0,0.00035697,30]
[422121177,1778583043000,-151.0,0.00035697,30]
[422121181,1778583043000,-568.65,0.00036,7]
[422121192,1778583043000,-155.0,0.00036683,30]
[422121180,1778583043000,-150.0,0.00035981,2]
[422121182,1778583043000,-151.0,0.00036153,30]
[422121190,1778583043000,-164.0,0.00036683,30]
[422121185,1778583043000,-2925.0,0.00036442,2]
[422121189,1778583043000,-383.0,0.00036683,30]
[422121187,1778583043000,-4114.75,0.0003651,2]
[422121173,1778583043000,-153.0,0.00035697,30]
[422121156,1778583043000,-12094.67166057,0.00035557,2]
[422121133,1778583043000,-1005.275,0.00034633,2]
[422121165,1778583043000,-500.0,0.00035616,5]
[422121184,1778583043000,-1000.0,0.00036438,5]
[422121135,1778583043000,-383.0,0.00034683,30]
[422121136,1778583043000,-164.0,0.00034683,30]
[422121134,1778583043000,-417.0,0.00034633,2]
[422121140,1778583043000,-153.0,0.00034697,30]
[422121137,1778583043000,-191.0,0.00034683,30]
[422121141,1778583043000,-292.0,0.00034697,30]
[422121132,1778583043000,-3540.0,0.00034633,2]
[422121139,1778583043000,-158.0,0.00034683,30]
[422121138,1778583043000,-155.0,0.00034683,30]
[422121143,1778583043000,-154.0,0.00034697,30]
[422121153,1778583043000,-565.0,0.00035511,30]
[422121142,1778583043000,-733.0,0.00034697,30]
[422121154,1778583043000,-762.0,0.00035511,30]
[422121147,1778583043000,-510.0,0.00034917,12]
[422121145,1778583043000,-1500.0,0.00034795,2]
[422121148,1778583043000,-350.0,0.00034931,5]
[422121144,1778583043000,-151.0,0.00034697,30]
[422121152,1778583043000,-1500.0,0.000352,7]
[422121146,1778583043000,-4857.52129124,0.00034874,2]
[422121149,1778583043000,-150.0,0.00034932,60]
[422121150,1778583043000,-308.5900429,0.00035,60]
[422121151,1778583043000,-1008.75464268,0.00035141,4]
[422121157,1778583043000,-289.55339026,0.00035609,5]
[422121155,1778583043000,-488.0,0.00035511,30]
[422121158,1778583043000,-154.0,0.00035616,120]
[422121159,1778583043000,-1983.18,0.00035616,30]
[422121164,1778583043000,-500.0,0.00035616,5]
[422121186,1778583043000,-264.35,0.000365,30]
[422121183,1778583043000,-510.0,0.00036419,14]
[422121194,1778583043000,-153.0,0.00036697,30]
[422121222,1778583043000,-300.0,0.00037261,2]
[422121227,1778583043000,-300.00000001,0.00037261,2]
[422121229,1778583043000,-300.0,0.00037261,2]
[422121230,1778583043000,-492.49408754,0.00037261,2]
[422121228,1778583043000,-300.0,0.00037261,2]
[422121232,1778583043000,-300.0,0.00037261,2]
[422121231,1778583043000,-331.63720224,0.00037261,2]
[422121238,1778583043000,-300.0,0.00037261,2]
[422121234,1778583043000,-300.0,0.00037261,2]
[422121237,1778583043000,-527.54022817,0.00037261,2]
[422121235,1778583043000,-604.21547136,0.00037261,2]
[422121233,1778583043000,-300.0,0.00037261,2]
[422121236,1778583043000,-300.0,0.00037261,2]
[422121240,1778583043000,-893.04482543,0.00037261,2]
[422121250,1778583043000,-1911.66155628,0.00037261,2]
[422121251,1778583043000,-300.0,0.00037261,2]
[422121249,1778583043000,-853.86030012,0.00037261,2]
[422121244,1778583043000,-300.0,0.00037261,2]
[422121239,1778583043000,-1066.50381929,0.00037261,2]
[422121247,1778583043000,-300.0,0.00037261,2]
[422121243,1778583043000,-301.67321972,0.00037261,2]
[422121242,1778583043000,-300.0,0.00037261,2]
[422121248,1778583043000,-300.0,0.00037261,2]
[422121241,1778583043000,-725.78568352,0.00037261,2]
[422121246,1778583043000,-300.0,0.00037261,2]
[422121245,1778583043000,-300.45062341,0.00037261,2]
[422121252,1778583043000,-300.0,0.00037261,2]
[422121224,1778583043000,-386.0005062,0.00037261,2]
[422121226,1778583043000,-300.0,0.00037261,2]
[422121188,1778583043000,-500.0,0.00036521,2]
[422121220,1778583043000,-300.0,0.00037261,2]
[422121223,1778583043000,-300.0,0.00037261,2]
[422121204,1778583043000,-661.29,0.00037057,7]
[422121193,1778583043000,-158.0,0.00036683,30]
[422121196,1778583043000,-733.0,0.00036697,30]
[422121199,1778583043000,-1001.192122,0.00036712,5]
[422121200,1778583043000,-350.0,0.00036849,5]
[422121195,1778583043000,-292.0,0.00036697,30]
[422121198,1778583043000,-151.0,0.00036697,30]
[422121201,1778583043000,-164.68,0.00036986,60]
[422121203,1778583043000,-4857.52129124,0.00037042,2]
[422121202,1778583043000,-150.41,0.00036994,120]
[422121205,1778583043000,-566.82,0.00037057,7]
[422121206,1778583043000,-170.54795026,0.000372,120]
[422121209,1778583043000,-150.0,0.00037233,7]
[422121197,1778583043000,-154.0,0.00036697,30]
[422121212,1778583043000,-177.0614353,0.00037233,7]
[422121207,1778583043000,-150.0,0.00037233,7]
[422121221,1778583043000,-300.0,0.00037261,2]
[422121219,1778583043000,-300.0,0.00037261,2]
[422121218,1778583043000,-1094.29459015,0.00037261,2]
[422121217,1778583043000,-300.0,0.00037261,2]
[422121215,1778583043000,-661.29,0.00037243,7]
[422121216,1778583043000,-1507.83585126,0.0003726,5]
[422121225,1778583043000,-495.19382325,0.00037261,2]
[422121214,1778583043000,-150.0,0.00037233,7]
[422121210,1778583043000,-150.0,0.00037233,7]
[422121211,1778583043000,-150.0,0.00037233,7]
[422121213,1778583043000,-150.0,0.00037233,7]
[422121208,1778583043000,-150.0,0.00037233,30]
[422121294,1778583044000,-300.0,0.00037261,2]
[422121297,1778583044000,-300.00000001,0.00037261,2]
[422121298,1778583044000,-300.0,0.00037261,2]
[422121295,1778583044000,-300.89392206,0.00037261,2]
[422121293,1778583044000,-300.0,0.00037261,2]
[422121288,1778583044000,-300.0,0.00037261,2]
[422121290,1778583044000,-300.0,0.00037261,2]
[422121286,1778583044000,-526.45624892,0.00037261,2]
[422121285,1778583044000,-300.0,0.00037261,2]
[422121289,1778583044000,-300.0,0.00037261,2]
[422121299,1778583044000,-300.0,0.00037261,2]
[422121292,1778583044000,-300.0,0.00037261,2]
[422121296,1778583044000,-300.0,0.00037261,2]
[422121305,1778583044000,-300.0,0.00037261,2]
[422121301,1778583044000,-492.49408754,0.00037261,2]
[422121300,1778583044000,-300.0,0.00037261,2]
[422121306,1778583044000,-300.0,0.00037261,2]
[422121312,1778583044000,-300.0,0.00037261,2]
[422121302,1778583044000,-364.41022781,0.00037261,2]
[422121308,1778583044000,-300.0,0.00037261,2]
[422121304,1778583044000,-300.0,0.00037261,2]
[422121311,1778583044000,-527.54022817,0.00037261,2]
[422121303,1778583044000,-300.0,0.00037261,2]
[422121307,1778583044000,-604.21547136,0.00037261,2]
[422121309,1778583044000,-300.0,0.00037261,2]
[422121310,1778583044000,-300.0,0.00037261,2]
[422121287,1778583044000,-1094.29459015,0.00037261,2]
[422121291,1778583044000,-300.0,0.00037261,2]
[422121283,1778583044000,-305.55843555,0.00037261,2]
[422121266,1778583044000,-310.77293504,0.00037261,2]
[422121282,1778583044000,-300.0,0.00037261,2]
[422121314,1778583044000,-893.04482543,0.00037261,2]
[422121256,1778583044000,-300.0,0.00037261,2]
[422121263,1778583044000,-300.0,0.00037261,2]
[422121253,1778583044000,-343.84381003,0.00037261,2]
[422121258,1778583044000,-309.46605895,0.00037261,2]
[422121255,1778583044000,-300.0,0.00037261,2]
[422121257,1778583044000,-1146.71946024,0.00037261,2]
[422121265,1778583044000,-300.0,0.00037261,2]
[422121264,1778583044000,-300.0,0.00037261,2]
[422121259,1778583044000,-300.0,0.00037261,2]
[422121260,1778583044000,-864.10865205,0.00037261,2]
[422121262,1778583044000,-1809.24690158,0.00037261,2]
[422121261,1778583044000,-300.0,0.00037261,2]
[422121280,1778583044000,-483.88780455,0.00037261,2]
[422121267,1778583044000,-300.0,0.00037261,2]
[422121276,1778583044000,-300.0,0.00037261,2]
[422121268,1778583044000,-300.0,0.00037261,2]
[422121269,1778583044000,-463.6616139,0.00037261,2]
[422121278,1778583044000,-440.45546341,0.00037261,2]
[422121279,1778583044000,-300.0,0.00037261,2]
[422121272,1778583044000,-300.0,0.00037261,2]
[422121270,1778583044000,-300.0,0.00037261,2]
[422121277,1778583044000,-300.0,0.00037261,2]
[422121271,1778583044000,-576.93890108,0.00037261,2]
[422121274,1778583044000,-300.0,0.00037261,2]
[422121273,1778583044000,-451.72868137,0.00037261,2]
[422121281,1778583044000,-309.70196001,0.00037261,2]
[422121284,1778583044000,-300.0,0.00037261,2]
[422121275,1778583044000,-300.0,0.00037261,2]
[422121254,1778583044000,-526.68525168,0.00037261,2]
[422121313,1778583044000,-1066.50381929,0.00037261,2]
[422121315,1778583044000,-300.0,0.00037261,2]
[422121340,1778583044000,-1809.24690158,0.00037261,2]
[422121343,1778583044000,-300.0,0.00037261,2]
[422121345,1778583044000,-300.0,0.00037261,2]
[422121347,1778583044000,-463.6616139,0.00037261,2]
[422121353,1778583044000,-300.0,0.00037261,2]
[422121355,1778583044000,-300.0,0.00037261,2]
[422121356,1778583044000,-300.0,0.00037261,2]
[422121357,1778583044000,-483.88780455,0.00037261,2]
[422121354,1778583044000,-300.0,0.00037261,2]
[422121363,1778583044000,-417.0,0.00037633,2]
[422121359,1778583044000,-300.0,0.00037261,2]
[422121358,1778583044000,-309.70196001,0.00037261,2]
[422121361,1778583044000,-304.55,0.00037546,2]
[422121346,1778583044000,-300.0,0.00037261,2]
[422121360,1778583044000,-150.0,0.00037509,7]
[422121365,1778583044000,-250.0,0.0003769,2]
[422121375,1778583044000,-1444.0,0.00037753,120]
[422121374,1778583044000,-150.0,0.0003775,30]
[422121369,1778583044000,-250.0,0.0003769,2]
[422121366,1778583044000,-250.0,0.0003769,2]
[422121364,1778583044000,-250.0,0.0003769,2]
[422121367,1778583044000,-250.0,0.0003769,2]
[422121376,1778583044000,-150.0,0.0003778,2]
[422121372,1778583044000,-179.0,0.0003769,2]
[422121370,1778583044000,-250.0,0.0003769,2]
[422121371,1778583044000,-250.0,0.0003769,2]
[422121324,1778583044000,-300.0,0.00037261,2]
[422121373,1778583044000,-7900.96028016,0.00037746,5]
[422121362,1778583044000,-500.0,0.00037562,2]
[422121344,1778583044000,-310.77293504,0.00037261,2]
[422121368,1778583044000,-250.0,0.0003769,2]
[422121349,1778583044000,-576.93890108,0.00037261,2]
[422121348,1778583044000,-300.0,0.00037261,2]
[422121325,1778583044000,-300.0,0.00037261,2]
[422121316,1778583044000,-300.0,0.00037261,2]
[422121320,1778583044000,-300.0,0.00037261,2]
[422121318,1778583044000,-300.0,0.00037261,2]
[422121322,1778583044000,-300.0,0.00037261,2]
[422121323,1778583044000,-300.0,0.00037261,2]
[422121319,1778583044000,-301.67321972,0.00037261,2]
[422121321,1778583044000,-300.45062341,0.00037261,2]
[422121326,1778583044000,-300.0,0.00037261,2]
[422121328,1778583044000,-1911.66155628,0.00037261,2]
[422121329,1778583044000,-300.0,0.00037261,2]
[422121327,1778583044000,-853.86030012,0.00037261,2]
[422121330,1778583044000,-300.0,0.00037261,2]
[422121317,1778583044000,-725.78568352,0.00037261,2]
[422121333,1778583044000,-300.0,0.00037261,2]
[422121331,1778583044000,-343.84381003,0.00037261,2]
[422121342,1778583044000,-300.0,0.00037261,2]
[422121341,1778583044000,-300.0,0.00037261,2]
[422121352,1778583044000,-300.0,0.00037261,2]
[422121351,1778583044000,-451.72868137,0.00037261,2]
[422121339,1778583044000,-300.0,0.00037261,2]
[422121350,1778583044000,-300.0,0.00037261,2]
[422121335,1778583044000,-1146.71946024,0.00037261,2]
[422121338,1778583044000,-864.10865205,0.00037261,2]
[422121336,1778583044000,-309.46605895,0.00037261,2]
[422121332,1778583044000,-526.68525168,0.00037261,2]
[422121337,1778583044000,-300.0,0.00037261,2]
[422121334,1778583044000,-300.0,0.00037261,2]
[422121416,1778583045000,-500.0,0.00038356,2]
[422121414,1778583045000,-500.0,0.00038356,2]
[422121417,1778583045000,-500.0,0.00038356,2]
[422121422,1778583045000,-500.0,0.00038356,2]
[422121408,1778583045000,-500.0,0.00038356,2]
[422121410,1778583045000,-500.0,0.00038356,2]
[422121411,1778583045000,-500.0,0.00038356,2]
[422121407,1778583045000,-299.42619551,0.00038356,2]
[422121409,1778583045000,-500.0,0.00038356,2]
[422121424,1778583045000,-500.0,0.00038356,2]
[422121421,1778583045000,-500.0,0.00038356,2]
[422121412,1778583045000,-403.63901603,0.00038356,2]
[422121420,1778583045000,-500.0,0.00038356,2]
[422121423,1778583045000,-500.0,0.00038356,2]
[422121419,1778583045000,-500.0,0.00038356,2]
[422121418,1778583045000,-500.0,0.00038356,2]
[422121426,1778583045000,-500.0,0.00038356,2]
[422121425,1778583045000,-500.0,0.00038356,2]
[422121427,1778583045000,-500.0,0.00038356,2]
[422121429,1778583045000,-500.0,0.00038356,2]
[422121433,1778583045000,-505.95760392,0.00038356,2]
[422121430,1778583045000,-500.0,0.00038356,2]
[422121428,1778583045000,-500.0,0.00038356,2]
[422121431,1778583045000,-500.0,0.00038356,2]
[422121434,1778583045000,-1000.0,0.00038356,7]
[422121404,1778583045000,-500.0,0.00038356,2]
[422121415,1778583045000,-500.0,0.00038356,2]
[422121413,1778583045000,-500.0,0.00038356,2]
[422121390,1778583045000,-275.32714793,0.000381,33]
[422121400,1778583045000,-901.41552933,0.00038356,7]
[422121438,1778583045000,-250.0,0.00038359,5]
[422121377,1778583045000,-150.0,0.00037784,7]
[422121378,1778583045000,-5026.19770332,0.00037919,2]
[422121380,1778583045000,-5000.0,0.00037919,2]
[422121381,1778583045000,-5000.0,0.00037919,2]
[422121379,1778583045000,-5000.0,0.00037919,2]
[422121382,1778583045000,-5000.0,0.00037919,2]
[422121383,1778583045000,-5000.0,0.00037919,2]
[422121386,1778583045000,-5000.0,0.00037919,2]
[422121385,1778583045000,-5000.0,0.00037919,2]
[422121389,1778583045000,-150.0,0.0003806,7]
[422121387,1778583045000,-5000.0,0.00037919,2]
[422121405,1778583045000,-500.0,0.00038356,2]
[422121388,1778583045000,-510.0,0.00037922,16]
[422121392,1778583045000,-830.94570506,0.00038217,2]
[422121403,1778583045000,-500.0,0.00038356,2]
[422121402,1778583045000,-500.0,0.00038356,2]
[422121391,1778583045000,-151.0,0.00038125,30]
[422121394,1778583045000,-251.0,0.00038287,2]
[422121393,1778583045000,-150.0,0.00038267,30]
[422121397,1778583045000,-158.82843331,0.00038329,120]
[422121395,1778583045000,-1788.0,0.00038329,120]
[422121396,1778583045000,-1788.0,0.00038329,120]
[422121398,1778583045000,-150.0,0.00038336,7]
[422121399,1778583045000,-2142.5719,0.00038351,2]
[422121401,1778583045000,-500.0,0.00038356,2]
[422121384,1778583045000,-5000.0,0.00037919,2]
[422121432,1778583045000,-385.45,0.00038356,2]
[422121406,1778583045000,-500.0,0.00038356,2]
[422121436,1778583045000,-931.8569684,0.00038356,7]
[422121477,1778583045000,-1000.0,0.00039121,5]
[422121468,1778583045000,-200.0,0.0003887,6]
[422121470,1778583045000,-200.0,0.00038871,6]
[422121469,1778583045000,-200.0,0.00038871,6]
[422121471,1778583045000,-150.0,0.00038888,7]
[422121472,1778583045000,-2000.0,0.000389,7]
[422121476,1778583045000,-150.0,0.00039041,60]
[422121474,1778583045000,-183.579,0.00038986,120]
[422121475,1778583045000,-2142.5719,0.00038991,2]
[422121473,1778583045000,-1000.0,0.000389,14]
[422121478,1778583045000,-313.6251751,0.00039121,5]
[422121479,1778583045000,-150.0,0.00039163,7]
[422121480,1778583045000,-235.67013612,0.000392,30]
[422121482,1778583045000,-194.82682534,0.000393,30]
[422121481,1778583045000,-4857.52129124,0.0003921,2]
[422121485,1778583045000,-274161.19869049,0.00039302,2]
[422121486,1778583045000,-2142.5719,0.0003931,2]
[422121484,1778583045000,-150.0,0.00039301,7]
[422121483,1778583045000,-150.0,0.00039301,30]
[422121487,1778583045000,-1815.08,0.00039324,120]
[422121491,1778583045000,-152.0,0.00039455,4]
[422121490,1778583045000,-150.0,0.00039439,7]
[422121488,1778583045000,-2337.83,0.000394,14]